bitfinex/quotes_BTCUSD_20251224
["timestamp","ask_amount","ask_price","bid_price","bid_amount"]
[1766543151818,0.01143942,87417.0,87408.0,0.11886]
[1766543152050,0.01148,87419.0,87408.0,0.11886]
[1766543152224,0.01148,87419.0,87417.0,0.000549]
[1766543152583,0.01143889,87421.0,87414.0,0.01148]
[1766543154112,0.06863417,87420.0,87414.0,0.01148]
[1766543154305,0.01143902,87420.0,87414.0,0.01148]
[1766543154874,0.01143889,87421.0,87414.0,0.01148]
[1766543155396,0.01143876,87422.0,87414.0,0.01148]
[1766543155558,0.01148,87426.0,87419.0,0.01143916]
[1766543155761,0.00010743,87426.0,87421.0,0.01143889]
[1766543156164,0.00010743,87426.0,87420.0,0.02291902]
[1766543156412,0.00010743,87426.0,87420.0,0.01148]
[1766543157517,0.01154567,87426.0,87420.0,0.01148]
[1766543158099,0.00010743,87426.0,87420.0,0.01148]
[1766543158283,0.01154567,87426.0,87420.0,0.01148]
[1766543158881,0.00010743,87426.0,87420.0,0.01148]
[1766543161967,0.01143837,87425.0,87415.0,0.11886]
[1766543162177,0.01088963,87423.0,87413.0,0.01148]
[1766543162591,0.01143889,87421.0,87414.0,0.01148]
[1766543162908,0.01143916,87419.0,87414.0,0.01148]
[1766543163322,0.01143929,87418.0,87414.0,0.01148]
[1766543163524,0.01143916,87419.0,87414.0,0.01148]
[1766543163748,0.01143929,87418.0,87414.0,0.01148]
[1766543164696,0.01143942,87417.0,87414.0,0.01148]
[1766543165106,0.01143929,87418.0,87414.0,0.01148]
[1766543165301,0.01143942,87417.0,87414.0,0.010931]
[1766543167304,0.01143916,87419.0,87414.0,0.010931]
[1766543167661,0.01143929,87418.0,87414.0,0.010931]
[1766543169215,0.01143916,87419.0,87414.0,0.010931]
[1766543169401,0.01143902,87420.0,87414.0,0.010931]
[1766543169625,0.01143916,87419.0,87414.0,0.010931]
[1766543170227,0.01143929,87418.0,87414.0,0.010931]
[1766543171642,0.01143916,87419.0,87414.0,0.010931]
[1766543171845,0.01143929,87418.0,87414.0,0.010931]
[1766543173152,0.01143916,87419.0,87414.0,0.010931]
[1766543173353,0.00010743,87426.0,87418.0,0.000549]
[1766543173618,0.00010743,87426.0,87417.0,0.05719676]
[1766543173861,0.00010743,87426.0,87417.0,0.01143942]
[1766543173972,0.00010743,87426.0,87419.0,0.01143916]
[1766543174168,0.00010743,87426.0,87420.0,0.01143902]
[1766543174371,0.00010743,87426.0,87419.0,0.01148]
[1766543175773,0.01154567,87426.0,87419.0,0.01148]
[1766543176168,0.00010743,87426.0,87419.0,0.01148]
[1766543176422,0.0001,87430.0,87426.0,0.000549]
[1766543176801,0.0001,87430.0,87420.0,0.11782]
[1766543177016,0.01153772,87430.0,87420.0,0.11782]
[1766543177374,0.01143785,87429.0,87420.0,0.11782]
[1766543178385,0.01153772,87430.0,87420.0,0.11782]
[1766543179891,0.01153772,87430.0,87420.0,0.12925902]
[1766543180119,0.01143798,87428.0,87420.0,0.11782]
[1766543180332,0.01143785,87429.0,87420.0,0.11782]
[1766543180506,0.01153772,87430.0,87420.0,0.11782]
[1766543180830,0.01153772,87430.0,87420.0,0.12925902]
[1766543181035,0.04576,87442.0,87430.0,0.01143772]
[1766543181209,0.01148,87441.0,87432.0,0.01143745]
[1766543181534,0.01148,87441.0,87433.0,0.01143732]
[1766543181906,0.01148,87441.0,87432.0,0.01143745]
[1766543182115,0.01148,87441.0,87428.0,0.05718973]
[1766543182321,0.02291628,87441.0,87430.0,0.01143772]
[1766543182550,0.01143589,87444.0,87433.0,0.01143732]
[1766543182773,0.01143628,87441.0,87434.0,0.01148]
[1766543183131,0.01143641,87440.0,87434.0,0.01148]
[1766543183334,0.01143628,87441.0,87434.0,0.01148]
[1766543183990,0.01143667,87438.0,87434.0,1e-06]
[1766543184197,0.01143654,87439.0,87434.0,1e-06]
[1766543184357,0.01143641,87440.0,87434.0,1e-06]
[1766543184555,0.01143667,87438.0,87434.0,1e-06]
[1766543184983,0.01143693,87436.0,87435.0,0.00185941]
[1766543185390,0.01143667,87438.0,87435.0,0.00185941]
[1766543185808,0.01143654,87439.0,87435.0,0.00185941]
[1766543186517,0.01143641,87440.0,87435.0,0.00185941]
[1766543188328,0.01143667,87438.0,87435.0,0.00185941]
[1766543188678,0.01143641,87440.0,87435.0,0.00185941]
[1766543188962,0.01143667,87438.0,87435.0,0.00185941]
[1766543189142,0.01143654,87439.0,87435.0,0.00185941]
[1766543189903,0.01143641,87440.0,87435.0,0.00185941]
[1766543190237,0.01143654,87439.0,87435.0,0.00185941]
[1766543190441,0.01143641,87440.0,87435.0,0.00185941]
[1766543190768,0.01143654,87439.0,87435.0,0.00185941]
[1766543190967,0.06861463,87445.0,87439.0,0.000549]
[1766543191257,0.01143602,87443.0,87439.0,0.000549]
[1766543191458,0.01143589,87444.0,87435.0,0.00185941]
[1766543192453,0.01143602,87443.0,87435.0,0.00185941]
[1766543192669,0.01143615,87442.0,87435.0,0.00185941]
[1766543192870,0.01143641,87440.0,87435.0,0.00185941]
[1766543193939,0.01143628,87441.0,87435.0,0.00185941]
[1766543194700,0.01143641,87440.0,87435.0,0.00185941]
[1766543195067,0.01143602,87443.0,87435.0,0.00185941]
[1766543195268,0.01143615,87442.0,87435.0,0.00185941]
[1766543195466,0.01143628,87441.0,87435.0,0.00185941]
[1766543195878,0.01143615,87442.0,87435.0,0.00185941]
[1766543196082,0.01143602,87443.0,87435.0,0.00185941]
[1766543197420,0.01143615,87442.0,87435.0,0.00185941]
[1766543197634,0.01143628,87441.0,87435.0,0.00185941]
[1766543198597,0.01143654,87439.0,87435.0,0.00185941]
[1766543199634,0.01143732,87433.0,87423.0,0.01148]
[1766543199835,0.01143719,87434.0,87423.0,0.01148]
[1766543199956,0.01143745,87432.0,87423.0,0.01148]
[1766543200155,0.01143745,87432.0,87423.0,0.13564]
[1766543200404,0.01143719,87434.0,87423.0,0.14707863]
[1766543200553,0.01143719,87434.0,87424.0,0.0114385]
[1766543200754,0.01143719,87434.0,87424.0,0.1355985]
[1766543201195,0.01143706,87435.0,87424.0,0.12416]
[1766543201981,0.01143745,87432.0,87424.0,0.12416]
[1766543202181,0.01143732,87433.0,87424.0,0.12416]
[1766543202359,0.01143706,87435.0,87424.0,0.12416]
[1766543202560,0.01143719,87434.0,87424.0,0.12416]
[1766543203146,0.01143719,87434.0,87424.0,0.1355985]
[1766543203796,0.01143706,87435.0,87425.0,0.01143837]
[1766543204015,0.01143719,87434.0,87424.0,0.1355985]
[1766543204219,0.01143732,87433.0,87424.0,0.12416]
[1766543204622,0.01143719,87434.0,87424.0,0.12416]
[1766543205009,0.01143719,87434.0,87424.0,0.1355985]
[1766543205223,0.01143706,87435.0,87425.0,0.01143837]
[1766543205469,0.01143732,87433.0,87424.0,0.12416]
[1766543205872,0.01143693,87436.0,87424.0,0.12416]
[1766543206059,0.01143667,87438.0,87424.0,0.12416]
[1766543206226,0.01143654,87439.0,87424.0,0.12416]
[1766543206428,0.01143641,87440.0,87426.0,0.01143824]
[1766543206629,0.01143654,87439.0,87427.0,0.01143811]
[1766543206833,0.01143654,87439.0,87425.0,0.05719187]
[1766543207149,0.01143654,87439.0,87427.0,0.01143811]
[1766543207350,0.01143654,87439.0,87426.0,0.01143824]
[1766543207562,0.01143628,87441.0,87428.0,0.01143798]
[1766543207774,0.01143641,87440.0,87430.0,0.01143772]
[1766543209477,0.04751797,87442.0,87431.0,0.01143759]
[1766543209630,0.04751797,87442.0,87430.0,0.01143772]
[1766543209631,0.01143628,87441.0,87430.0,0.01143772]
[1766543209835,0.01143641,87440.0,87429.0,0.02291785]
[1766543210042,0.01143628,87441.0,87431.0,0.01143759]
[1766543210398,0.02291615,87442.0,87432.0,0.01143745]
[1766543210753,0.01143628,87441.0,87431.0,0.01143759]
[1766543211491,0.01143641,87440.0,87430.0,0.01143772]
[1766543211636,0.01143654,87439.0,87429.0,0.01148]
[1766543211842,0.0360381,87441.0,87430.0,0.01143772]
[1766543212043,0.01143641,87440.0,87430.0,0.01143772]
[1766543212293,0.01143654,87439.0,87429.0,0.02291785]
[1766543212658,0.02460182,87441.0,87430.0,0.01143772]
[1766543212859,0.02291615,87442.0,87430.0,0.01143772]
[1766543213400,0.02291615,87442.0,87429.0,0.02291785]
[1766543213728,0.01143628,87441.0,87430.0,0.01143772]
[1766543214882,0.01143641,87440.0,87430.0,0.01143772]
[1766543215883,0.01143628,87441.0,87431.0,0.01143759]
[1766543216246,0.01148,87442.0,87441.0,0.000549]
[1766543216597,0.01148,87442.0,87432.0,0.01143745]
[1766543216803,0.02291615,87442.0,87433.0,0.01143732]
[1766543216998,0.01143641,87440.0,87431.0,0.01148]
[1766543218242,0.01143667,87438.0,87431.0,0.01148]
[1766543218420,0.0114368,87437.0,87431.0,0.01148]
[1766543219050,0.01143667,87438.0,87431.0,0.01148]
[1766543220941,0.01143654,87439.0,87431.0,0.01148]
[1766543221333,0.01143667,87438.0,87431.0,0.01148]
[1766543221534,0.01143654,87439.0,87431.0,0.01148]
[1766543222343,0.01143693,87436.0,87427.0,0.01148]
[1766543222462,0.01143693,87436.0,87424.0,0.0114385]
[1766543222463,0.01143706,87435.0,87425.0,0.01148]
[1766543223416,0.01143693,87436.0,87425.0,0.02291837]
[1766543223621,0.01143693,87436.0,87426.0,0.01143824]
[1766543223796,0.0229168,87437.0,87425.0,0.02291837]
[1766543223983,0.0229168,87437.0,87427.0,0.01143811]
[1766543224178,0.01143693,87436.0,87426.0,0.01143824]
[1766543224595,0.0229168,87437.0,87426.0,0.01143824]
[1766543224596,0.01148,87437.0,87426.0,0.01143824]
[1766543224791,0.01143693,87436.0,87426.0,0.01143824]
[1766543225497,0.01143693,87436.0,87425.0,0.01143837]
[1766543225498,0.01143706,87435.0,87425.0,0.02291837]
[1766543227484,0.01143719,87434.0,87425.0,0.01148]
[1766543227843,0.01143706,87435.0,87425.0,0.02291837]
[1766543228017,0.01143706,87435.0,87425.0,0.01148]
[1766543228219,0.01143693,87436.0,87425.0,0.02291837]
[1766543228431,0.01143719,87434.0,87425.0,0.01148]
[1766543228623,0.01143706,87435.0,87425.0,0.02291837]
[1766543229161,0.08010091,87437.0,87426.0,0.01143824]
[1766543229329,0.01148,87437.0,87435.0,0.000549]
[1766543229756,0.01148,87437.0,87430.0,0.01143772]
[1766543229962,0.01148,87437.0,87433.0,0.01143732]
[1766543230511,0.01148,87437.0,87430.0,0.01143772]
[1766543230822,0.01148,87437.0,87431.0,0.01143759]
[1766543231230,0.01148,87437.0,87429.0,0.0686265]
[1766543231530,0.01148,87437.0,87430.0,0.01143772]
[1766543231944,0.01148,87437.0,87428.0,0.01143798]
[1766543232226,0.01148,87437.0,87429.0,0.01143785]
[1766543233057,0.01148,87437.0,87430.0,0.01143772]
[1766543234280,0.01148,87437.0,87431.0,0.01143759]
[1766543234603,0.01148,87437.0,87427.0,0.05719051]
[1766543234604,0.01143693,87436.0,87422.0,0.05719573]
[1766543234874,0.01143732,87433.0,87422.0,0.01143876]
[1766543235029,0.01143745,87432.0,87421.0,0.01143889]
[1766543235223,0.01143759,87431.0,87421.0,0.01143889]
[1766543235422,0.01143745,87432.0,87422.0,0.01143876]
[1766543235672,0.01143759,87431.0,87420.0,0.01143902]
[1766543235841,0.01143772,87430.0,87419.0,0.01143916]
[1766543236029,0.02291745,87432.0,87420.0,0.01143902]
[1766543236227,0.02291745,87432.0,87421.0,0.01143889]
[1766543236578,0.01143759,87431.0,87420.0,0.01143902]
[1766543236782,0.01143759,87431.0,87421.0,0.01143889]
[1766543237960,0.01143759,87431.0,87420.0,0.01143902]
[1766543238205,0.01143772,87430.0,87420.0,0.01143902]
[1766543238397,0.01148,87432.0,87421.0,0.01143889]
[1766543238707,0.02745069,87431.0,87420.0,0.01143902]
[1766543238856,0.02745069,87431.0,87422.0,0.01143876]
[1766543239058,0.02690169,87431.0,87423.0,0.01143863]
[1766543239465,0.02690169,87431.0,87422.0,0.01143876]
[1766543239669,0.02690169,87431.0,87420.0,0.01143902]
[1766543239941,0.03833928,87431.0,87420.0,0.01143902]
[1766543240420,0.01143772,87430.0,87419.0,0.01143916]
[1766543240649,0.03833928,87431.0,87421.0,0.01143889]
[1766543240978,0.01143772,87430.0,87420.0,0.01143902]
[1766543241178,0.03833928,87431.0,87421.0,0.01143889]
[1766543241618,0.09552731,87431.0,87418.0,0.01143929]
[1766543241780,0.01143798,87428.0,87417.0,0.02291942]
[1766543242123,0.01143824,87426.0,87417.0,0.01148]
[1766543242329,0.0114385,87424.0,87410.0,0.0686414]
[1766543242509,0.01143863,87423.0,87413.0,0.01148]
[1766543242706,0.01143876,87422.0,87413.0,0.01148]
[1766543242906,0.01143889,87421.0,87413.0,0.01148]
[1766543243331,0.01143889,87421.0,87405.0,0.01144099]
[1766543243332,0.02745069,87417.0,87405.0,0.01144099]
[1766543243508,0.000549,87413.0,87408.0,0.0114406]
[1766543243931,0.02745069,87417.0,87409.0,0.01144046]
[1766543244150,0.02745069,87417.0,87410.0,0.01144033]
[1766543244526,0.02745069,87417.0,87409.0,0.02292046]
[1766543244709,0.02745069,87417.0,87410.0,0.01144033]
[1766543244910,0.02745069,87417.0,87409.0,0.01148]
[1766543245912,0.02745069,87417.0,87410.0,0.01144033]
[1766543246325,0.02745069,87417.0,87409.0,0.13497]
[1766543246660,0.02745069,87417.0,87410.0,0.01144033]
[1766543246862,0.03889011,87417.0,87408.0,0.01148]
[1766543247161,0.01143955,87416.0,87408.0,0.01148]
[1766543247306,0.03889011,87417.0,87408.0,0.01148]
[1766543247824,0.01143955,87416.0,87408.0,0.01148]
[1766543248443,0.03889011,87417.0,87408.0,0.0229206]
[1766543248849,0.03889011,87417.0,87408.0,0.01148]
[1766543249203,0.02745069,87417.0,87408.0,0.0229206]
[1766543249406,0.02745069,87417.0,87404.0,0.06864665]
[1766543249407,0.01144073,87407.0,87395.0,0.0114423]
[1766543249611,0.0114402,87411.0,87395.0,0.0229223]
[1766543249612,0.01148,87406.0,87395.0,0.0229223]
[1766543249785,0.02745069,87403.0,87395.0,0.0229223]
[1766543250243,0.02745069,87403.0,87394.0,0.01144243]
[1766543250423,0.02745069,87403.0,87395.0,0.0114423]
[1766543250597,0.02751207,87403.0,87394.0,0.01144243]
[1766543250757,0.02751207,87403.0,87395.0,0.0114423]
[1766543250962,0.01144138,87402.0,87392.0,0.01144269]
[1766543251163,0.03895332,87403.0,87393.0,0.01144256]
[1766543251366,0.000549,87393.0,87388.0,0.0001]
[1766543251695,0.05720823,87400.0,87388.0,0.0001]
[1766543251696,0.0229219,87398.0,87388.0,0.0001]
[1766543252126,0.01148,87398.0,87388.0,0.01154321]
[1766543252321,0.01148,87398.0,87389.0,0.01144308]
[1766543252524,0.01148,87398.0,87388.0,0.01154321]
[1766543252525,0.01144204,87397.0,87388.0,0.0001]
[1766543252728,0.0229219,87398.0,87388.0,0.0001]
[1766543253027,0.0229219,87398.0,87388.0,0.01154321]
[1766543254099,0.01148,87398.0,87390.0,0.01144295]
[1766543255311,0.01148,87398.0,87388.0,0.0001]
[1766543255539,0.01148,87398.0,87388.0,0.01154321]
[1766543255745,0.01148,87398.0,87389.0,0.01144308]
[1766543256295,0.01148,87398.0,87388.0,0.01154321]
[1766543256499,0.01144204,87397.0,87388.0,0.0001]
[1766543256876,0.01148,87398.0,87388.0,0.01154321]
[1766543257038,0.01148,87398.0,87389.0,0.01144308]
[1766543257704,0.01148,87398.0,87390.0,0.01144295]
[1766543257898,0.01148,87398.0,87389.0,0.01144308]
[1766543259734,0.0229219,87398.0,87388.0,0.0001]
[1766543260028,0.01148,87398.0,87388.0,0.0001]
[1766543260236,0.01148,87398.0,87388.0,0.01154321]
[1766543260657,0.0229219,87398.0,87388.0,0.01154321]
[1766543261066,0.01148,87398.0,87389.0,0.01144308]
[1766543261267,0.01148,87398.0,87390.0,0.01144295]
[1766543261438,0.01148,87398.0,87389.0,0.01144308]
[1766543261744,0.01148,87398.0,87390.0,0.01144295]
[1766543262141,0.01148,87398.0,87388.0,0.0001]
[1766543262487,0.01144177,87399.0,87389.0,0.01144308]
[1766543262646,0.01148,87397.0,87391.0,0.01144282]
[1766543262848,0.0001,87408.0,87403.0,0.01144125]
[1766543263079,0.01148,87407.0,87404.0,0.01144112]
[1766543263478,0.01148,87407.0,87403.0,0.01144125]
[1766543263840,0.01148,87407.0,87402.0,0.01144138]
[1766543264050,0.01093,87407.0,87404.0,0.01144112]
[1766543264446,0.01093,87407.0,87404.0,0.06864618]
[1766543265012,0.01093,87407.0,87404.0,0.0686466]
[1766543265766,0.0049362,87407.0,87404.0,0.0686466]
[1766543265964,0.00139846,87407.0,87404.0,0.0686466]
[1766543266397,0.00139846,87407.0,87404.0,0.01144112]
[1766543267976,0.00034097,87407.0,87404.0,0.01144112]
[1766543268188,0.00034097,87407.0,87404.0,0.01068397]
[1766543269124,0.02745069,87417.0,87413.0,0.01143994]
[1766543269344,0.03893069,87417.0,87413.0,0.00010743]
[1766543269527,0.0114402,87411.0,87400.0,0.1237]
[1766543269847,0.01144033,87410.0,87400.0,0.13514164]
[1766543270048,0.01144046,87409.0,87400.0,0.1237]
[1766543270207,0.0114402,87411.0,87400.0,0.1237]
[1766543270544,0.01144033,87410.0,87400.0,0.01144164]
[1766543270751,0.01144046,87409.0,87399.0,0.01144177]
[1766543270918,0.0114402,87411.0,87400.0,0.01144164]
[1766543272562,0.01144007,87412.0,87400.0,0.01144164]
[1766543272706,0.01144007,87412.0,87401.0,0.02292151]
[1766543273140,0.01144007,87412.0,87402.0,0.01144138]
[1766543274082,0.01143981,87414.0,87403.0,0.01144125]
[1766543275195,0.01144007,87412.0,87401.0,0.02292151]
[1766543275409,0.01144033,87410.0,87401.0,0.01148]
[1766543275700,0.0114402,87411.0,87401.0,0.02292151]
[1766543276505,0.0114402,87411.0,87402.0,0.01144138]
[1766543276704,0.0114402,87411.0,87397.0,0.01148]
[1766543276705,0.000549,87401.0,87397.0,0.01148]
[1766543276849,0.000549,87401.0,87399.0,0.05720884]
[1766543277053,0.02745069,87403.0,87400.0,0.01144164]
[1766543277655,0.02745069,87403.0,87401.0,0.05720758]
[1766543279578,0.01148,87410.0,87404.0,0.01144112]
[1766543279774,0.01148,87410.0,87403.0,0.01144125]
[1766543280179,0.01148,87410.0,87404.0,0.01144112]
[1766543280362,0.01148,87410.0,87405.0,0.01144099]
[1766543281523,0.01148,87410.0,87403.0,0.01144125]
[1766543281682,0.01148,87410.0,87402.0,0.01144138]
[1766543281895,0.01148,87410.0,87401.0,0.01144151]
[1766543282105,0.02292033,87410.0,87400.0,0.01144164]
[1766543282302,0.02292033,87410.0,87396.0,0.05721051]
[1766543282303,0.000549,87400.0,87396.0,0.01144217]
[1766543282544,0.000549,87400.0,87397.0,0.02297116]
[1766543282745,0.02745069,87403.0,87397.0,0.02297116]
[1766543282888,0.0114406,87408.0,87398.0,0.11908]
[1766543283092,0.02292033,87410.0,87400.0,0.11908]
[1766543283288,0.0114406,87408.0,87400.0,0.11908]
[1766543283511,0.0114406,87408.0,87397.0,0.01152912]
[1766543283690,0.01144073,87407.0,87397.0,0.01152912]
[1766543284147,0.01144046,87409.0,87397.0,0.02297116]
[1766543284365,0.0114406,87408.0,87398.0,0.0114419]
[1766543284956,0.02745069,87403.0,87398.0,0.0114419]
[1766543285358,0.39658414,87410.0,87398.0,0.0114419]
[1766543285359,0.39658414,87410.0,87398.0,0.06865143]
[1766543285507,0.38514381,87410.0,87401.0,0.01144151]
[1766543285715,0.39658414,87410.0,87401.0,0.01144151]
[1766543285977,0.38514381,87410.0,87401.0,0.13052151]
[1766543286732,0.39658414,87410.0,87401.0,0.11908]
[1766543287173,0.38514381,87410.0,87401.0,0.13052151]
[1766543287530,0.39658414,87410.0,87401.0,0.11908]
[1766543287972,0.38514381,87410.0,87401.0,0.13052151]
[1766543288334,0.45378585,87410.0,87401.0,0.11908]
[1766543288654,0.0114406,87408.0,87401.0,0.11908]
[1766543288850,0.01144073,87407.0,87401.0,0.09701097]
[1766543289057,0.01144086,87406.0,87401.0,0.09646197]
[1766543289254,0.02745069,87403.0,87397.0,0.01152912]
[1766543290293,0.02745069,87403.0,87396.0,0.02292217]
[1766543290496,0.02749981,87403.0,87396.0,2.17e-06]
[1766543290699,0.02749981,87403.0,87397.0,0.01144204]
[1766543291086,0.02749981,87403.0,87398.0,0.0114419]
[1766543291284,0.02749981,87403.0,87397.0,0.01144204]
[1766543291598,0.02749981,87403.0,87396.0,0.01144434]
[1766543291805,0.02695081,87403.0,87397.0,0.01144204]
[1766543292202,0.02695081,87403.0,87399.0,0.01144177]
[1766543292404,0.02695081,87403.0,87400.0,0.01144164]
[1766543292789,0.02695081,87403.0,87401.0,0.05720758]
[1766543292991,4.912e-05,87403.0,87401.0,0.05720758]
[1766543293605,4.912e-05,87403.0,87400.0,0.01144164]
[1766543293822,0.01148,87405.0,87400.0,0.01144164]
[1766543294031,0.02463239,87415.0,87405.0,0.01144099]
[1766543294205,0.02463239,87415.0,87404.0,0.01144112]
[1766543294206,0.02291981,87414.0,87404.0,0.13052112]
[1766543294608,0.01143994,87413.0,87404.0,0.11908]
[1766543295015,0.0114402,87411.0,87404.0,0.11908]
[1766543295214,0.02291981,87414.0,87404.0,0.13052112]
[1766543295962,0.01143994,87413.0,87404.0,0.11908]
[1766543296299,0.02291981,87414.0,87404.0,0.13052112]
[1766543297001,0.01143994,87413.0,87404.0,0.11908]
[1766543297206,0.01143994,87413.0,87402.0,0.01148]
[1766543297207,0.000549,87404.0,87402.0,0.01148]
[1766543297328,0.000549,87404.0,87398.0,0.01148]
[1766543297540,0.01144086,87406.0,87398.0,0.01148]
[1766543298945,0.01144073,87407.0,87398.0,0.01148]
[1766543299831,0.02292046,87409.0,87399.0,0.01144177]
[1766543300370,0.0114406,87408.0,87398.0,0.0229219]
[1766543300729,0.02292046,87409.0,87399.0,0.01144177]
[1766543301029,0.01148,87409.0,87400.0,0.01144164]
[1766543301526,0.02292046,87409.0,87399.0,0.01144177]
[1766543302385,0.01148,87409.0,87400.0,0.01144164]
[1766543302620,0.01148,87409.0,87401.0,0.01144151]
[1766543302806,0.01148,87409.0,87402.0,0.01144138]
[1766543304078,0.01148,87409.0,87403.0,0.01144125]
[1766543304280,0.01148,87409.0,87404.0,0.01144112]
[1766543304724,0.01148,87409.0,87400.0,0.11908]
[1766543304933,0.01148,87409.0,87401.0,0.01144151]
[1766543305910,0.01148,87409.0,87402.0,0.01144138]
[1766543307644,0.01148,87409.0,87403.0,0.01144125]
[1766543307848,0.01148,87409.0,87402.0,0.06864797]
[1766543308009,0.01148,87409.0,87404.0,0.01144112]
[1766543308593,0.01148,87409.0,87405.0,0.01144099]
[1766543308798,0.01148,87409.0,87404.0,0.01144112]
[1766543308996,0.01148,87409.0,87403.0,0.01144125]
[1766543310051,0.01148,87409.0,87404.0,0.01144112]
[1766543310353,0.01148,87409.0,87406.0,0.01144086]
[1766543310653,0.01148,87409.0,87405.0,0.01144099]
[1766543310849,0.01148,87409.0,87406.0,0.01144086]
[1766543312324,0.01148,87409.0,87405.0,0.01144099]
[1766543312979,0.01148,87409.0,87404.0,0.01144112]
[1766543313132,0.01148,87409.0,87406.0,0.01144086]
[1766543315448,0.01148,87409.0,87405.0,0.01144099]
[1766543315835,0.01148,87409.0,87406.0,0.01144086]
[1766543318243,0.01148,87409.0,87404.0,0.01144112]
[1766543318667,0.01148,87409.0,87405.0,0.01144099]
[1766543319096,0.000549,87405.0,87402.0,0.01144138]
[1766543319348,0.01148,87409.0,87403.0,0.01144125]
[1766543319674,0.01148,87409.0,87406.0,0.01144086]
[1766543319858,0.01148,87409.0,87405.0,0.01144099]
[1766543320097,0.01148,87409.0,87404.0,0.01144112]
[1766543320807,0.01148,87409.0,87405.0,0.01144099]
[1766543321122,0.01148,87409.0,87406.0,0.01144086]
[1766543321776,0.01148,87409.0,87399.0,0.01144177]
[1766543321942,0.000549,87406.0,87400.0,0.01144164]
[1766543322141,0.000549,87406.0,87401.0,0.01144151]
[1766543322339,0.01148,87409.0,87404.0,0.01144112]
[1766543322538,0.01148,87409.0,87405.0,0.01144099]
[1766543322739,0.01148,87409.0,87406.0,0.01144086]
[1766543323312,0.01148,87411.0,87408.0,0.0114406]
[1766543323431,0.01148,87411.0,87407.0,0.01144073]
[1766543323632,0.01148,87411.0,87406.0,0.01144086]
[1766543324188,0.01148,87411.0,87404.0,0.01144112]
[1766543324384,0.000549,87406.0,87403.0,0.01144125]
[1766543324601,0.01148,87411.0,87405.0,0.01144099]
[1766543324811,0.01148,87411.0,87404.0,0.01144112]
[1766543325014,0.01148,87411.0,87407.0,0.01144073]
[1766543325149,0.01148,87411.0,87407.0,0.01089173]
[1766543325353,0.01148,87411.0,87406.0,0.01144086]
[1766543326240,0.01148,87411.0,87405.0,0.01144099]
[1766543326554,0.01148,87411.0,87403.0,0.01144125]
[1766543326777,0.01148,87411.0,87401.0,0.06864904]
[1766543326976,0.0229202,87411.0,87399.0,0.02298315]
[1766543327203,0.01144046,87409.0,87399.0,0.02298315]
[1766543327374,0.01144046,87409.0,87400.0,0.13449164]
[1766543327681,0.01144046,87409.0,87400.0,0.12305]
[1766543327989,0.01144086,87406.0,87400.0,0.12305]
[1766543328191,0.0114406,87408.0,87400.0,0.12305]
[1766543328192,0.01144073,87407.0,87400.0,0.12305]
[1766543328353,0.01144099,87405.0,87400.0,0.12305]
[1766543328542,0.01144086,87406.0,87400.0,0.12305]
[1766543328746,0.01144125,87403.0,87399.0,0.01154138]
[1766543328985,0.01144112,87404.0,87399.0,0.01154138]
[1766543329201,0.01144099,87405.0,87399.0,0.01154138]
[1766543329398,0.01144086,87406.0,87399.0,0.01154138]
[1766543330064,0.01144073,87407.0,87399.0,0.01154138]
[1766543330265,0.01144086,87406.0,87399.0,0.01154138]
[1766543330604,0.01144073,87407.0,87399.0,0.01154138]
[1766543330760,0.01144112,87404.0,87399.0,0.01154138]
[1766543330991,0.01144073,87407.0,87399.0,0.01154138]
[1766543330992,0.01144099,87405.0,87399.0,0.01154138]
[1766543331375,0.01144112,87404.0,87399.0,0.01154138]
[1766543331575,0.01144086,87406.0,87399.0,0.01154138]
[1766543331780,0.01144046,87409.0,87400.0,0.01144164]
[1766543332000,0.01144046,87409.0,87399.0,0.01154138]
[1766543332208,0.01144033,87410.0,87399.0,0.02298315]
[1766543332381,0.01144073,87407.0,87399.0,0.01154138]
[1766543332569,0.0114406,87408.0,87399.0,0.01154138]
[1766543332766,0.0114406,87408.0,87399.0,0.02298315]
[1766543333753,0.01144046,87409.0,87399.0,0.02298315]
[1766543334104,0.01144033,87410.0,87400.0,0.01144164]
[1766543334285,0.01144046,87409.0,87400.0,0.01144164]
[1766543335146,0.01144033,87410.0,87400.0,0.01144164]
[1766543335506,0.01144046,87409.0,87400.0,0.01144164]
[1766543335938,0.01144033,87410.0,87400.0,0.01144164]
[1766543336143,0.01144046,87409.0,87400.0,0.01144164]
[1766543336322,0.01144046,87409.0,87399.0,0.14603315]
[1766543336521,0.01144033,87410.0,87400.0,0.01144164]
[1766543337662,0.01144046,87409.0,87400.0,0.01144164]
[1766543338274,0.0229202,87411.0,87400.0,0.01144164]
[1766543338275,0.01148,87411.0,87409.0,0.001099]
[1766543338651,5.144e-05,87411.0,87409.0,0.001099]
[1766543338847,5.144e-05,87411.0,87404.0,0.01144112]
[1766543339059,5.144e-05,87411.0,87403.0,0.01144125]
[1766543340039,5.144e-05,87411.0,87405.0,0.01144099]
[1766543340532,5.144e-05,87411.0,87406.0,0.01144086]
[1766543341279,5.144e-05,87411.0,87404.0,0.01144112]
[1766543341534,5.144e-05,87411.0,87405.0,0.01144099]
[1766543341730,4.4e-07,87411.0,87404.0,0.01144112]
[1766543341895,4.4e-07,87411.0,87403.0,0.01144125]
[1766543342079,0.01143994,87413.0,87404.0,0.01144112]
[1766543342283,0.01148,87412.0,87404.0,0.01144112]
[1766543342493,0.01148,87412.0,87403.0,0.01144125]
[1766543343413,0.01148,87412.0,87404.0,0.01144112]
[1766543343941,0.08012055,87412.0,87402.0,0.1239]
[1766543344283,0.01144033,87410.0,87402.0,0.1239]
[1766543344639,0.0114402,87411.0,87402.0,0.1239]
[1766543344847,0.0114402,87411.0,87402.0,0.13534138]
[1766543345716,0.0114402,87411.0,87402.0,0.1239]
[1766543346020,0.02292007,87412.0,87402.0,0.13534138]
[1766543346217,0.02292007,87412.0,87401.0,0.01144151]
[1766543346218,0.01144046,87409.0,87399.0,0.02298315]
[1766543346421,0.0114402,87411.0,87399.0,0.14688315]
[1766543346625,0.06864208,87410.0,87399.0,0.14688315]
[1766543346825,0.01144046,87409.0,87399.0,0.14688315]
[1766543347527,0.01144046,87409.0,87400.0,0.01144164]
[1766543347928,0.01144046,87409.0,87399.0,0.14688315]
[1766543348173,0.01144046,87409.0,87400.0,0.01144164]
[1766543348837,0.01144046,87409.0,87399.0,0.14688315]
[1766543349338,0.01144033,87410.0,87400.0,0.01144164]
[1766543349746,0.01144046,87409.0,87400.0,0.01144164]
[1766543350534,0.01144033,87410.0,87400.0,0.01144164]
[1766543350727,0.01144033,87410.0,87401.0,0.01144151]
[1766543350896,0.0114402,87411.0,87401.0,0.13534151]
[1766543351229,0.01144033,87410.0,87401.0,0.1239]
[1766543351580,0.01148,87412.0,87403.0,0.01144125]